{"text_format":"2","workbook":"xlsx","n_sheets":11,"sheets":["PFP","FPRO_I Salários Equipe Técnica","FPRO_II  Viagens","FPRO_III Ser Graf","FPRO-IV Topografia","FPRO_V Geotecnia","FPRO-VI Serviços Auxiliares","FPRO_VII Cronog Fisico","FPRO_VIII_Det_Custos Adm_","FPRO_IX Det_ Desp Fiscais","FPRO_X Det_ Enc_ Soc_"],"not_rendered":{"charts":0,"images":12,"macros":0,"external_links":0,"defined_names":22,"comments":0,"pivot_tables":0},"unopened":[],"bounds":{"document_bytes":16777216,"sheet_cells":100000,"run_cost":"one","rows_first":2000,"rows_last":500,"rows_between":2000,"halvings":0,"cell_chars":16384,"cell_head_chars":4096},"cells_cut":0,"cells_raw":0,"read":"whole","date_system":"1900"}

{"sheet":"PFP","index":0,"n_rows":48,"n_cols":2,"rows_kept":48,"cut":false,"hidden":false,"merged":[[6,0,7,0],[8,0,8,1],[9,0,10,0],[46,0,46,1],[40,0,40,1],[41,0,41,1],[37,0,37,1],[39,0,39,1],[19,0,19,1],[11,0,11,1],[12,0,13,1],[31,0,31,1],[32,0,32,1],[29,0,29,1],[25,0,25,1],[22,0,22,1],[16,0,16,1],[18,0,18,1]]}
[]
[]
[]
[]
[]
[]
["PROPOSTA FINANCEIRA DO PROJETO"]
[]
[]
["NOME DA CONSULTORA:","EDITAL:"]
[]
["OBJETO:"]
["ELABORAÇÃO DO PROJETO BÁSICO DE ENGENHARIA DO SISTEMA DE ESGOTAMENTO SANITÁRIO E DRENAGEM URBANA DO MUNICÍPIO DE ARAME, NO ESTADO DO MARANHÃO"]
[]
[]
[]
["SERVIÇOS PAGOS A PREÇO GLOBAL"]
[]
["CUSTOS DIRETOS"]
["MÃO DE OBRA"]
["A1 - TOTAL SALÁRIOS DA EQUIPE COM VÍNCULO (FPRO-I)",{"$f":"'FPRO_I Salários Equipe Técnica'!E30","v":134000}]
["A -   TOTAL DE MÃO DE OBRA:",{"$f":"SUM(B21:B21)","v":134000}]
["ENCARGOS SOCIAIS"]
[{"$f":"CONCATENATE(\"B1 - ENCARGOS SOCIAIS DE A1 (\",100*'FPRO_X Det_ Enc_ Soc_'!D57,\"% DO A1) (FPRO-X)\")","v":"B1 - ENCARGOS SOCIAIS DE A1 (72,97% DO A1) (FPRO-X)"},{"$f":"ROUND('FPRO_X Det_ Enc_ Soc_'!D57*B21,2)","v":97779.8}]
["B -  TOTAL DE ENCARGOS SOCIAIS:",{"$f":"SUM(B24:B24)","v":97779.8}]
["OUTRAS DESPESAS"]
["C1 - DESPESAS COM VIAGENS (FPRO-II)",{"$f":"'FPRO_II  Viagens'!E29","v":23461.479616583452}]
["C2 - SERVIÇOS GRÁFICOS (FPRO-III)",{"$f":"'FPRO_III Ser Graf'!E25","v":15600}]
["C - TOTAL DE OUTRAS DESPESAS:",{"$f":"SUM(B27:B28)","v":39061.479616583456}]
[]
["TOTAL DOS CUSTOS DIRETOS:",{"$f":"SUM(B22+B25+B29)","v":270841.27961658343}]
[]
["CUSTOS INDIRETOS"]
[{"$f":"CONCATENATE(\"D - CUSTO DE ADMINISTRAÇÃO = (\",100*'FPRO_VIII_Det_Custos Adm_'!C21,\"% DO ITEM A) (FPRO-VIII)\")","v":"D - CUSTO DE ADMINISTRAÇÃO = (15% DO ITEM A) (FPRO-VIII)"},{"$f":"ROUND('FPRO_VIII_Det_Custos Adm_'!C21*PFP!B22,2)","v":20100}]
["E - REMUNERAÇÃO DA EMPRESA (LUCRO) = (10% DOS ITENS A+B+C+D)",{"$f":"ROUND(0.1*(B31+B34),2)","v":29094.13}]
[{"$f":"CONCATENATE(\"F -  DESPESAS FISCAIS (\",ROUND('FPRO_IX Det_ Desp Fiscais'!C21,2),\"% = DF' DOS ITENS A+B+C+D+E) (FPRO-IX)\")","v":"F -  DESPESAS FISCAIS (16,62% = DF' DOS ITENS A+B+C+D+E) (FPRO-IX)"},{"$f":"ROUND('FPRO_IX Det_ Desp Fiscais'!C21/100*(B31+B34+B35),2)","v":53189.89}]
["TOTAL DOS CUSTOS INDIRETOS:",{"$f":"SUM(B34:B36)","v":102384.02}]
[]
["TOTAL DOS SERVIÇOS PAGOS A PREÇO GLOBAL:",{"$f":"B31+B37","v":373225.29961658345}]
[]
[]
["SERVIÇOS PAGOS A PREÇO UNITÁRIO"]
["H -  Serviços Topográficos (FPRO-IV)",{"$f":"'FPRO-IV Topografia'!F40","v":113575.7}]
["G - Serviços Geotécnicos (FPRO-V)",{"$f":"'FPRO_V Geotecnia'!F69","v":82971.56}]
["J - Serviços Auxiliares (FPRO-VI)",{"$f":"'FPRO-VI Serviços Auxiliares'!F24","v":227.44}]
["TOTAL DOS SERVIÇOS PAGOS A PREÇO UNITÁRIO",{"$f":"SUM(B43:B45)","v":196774.7}]
[]
["TOTAL DA PROPOSTA",{"$f":"B31+B37+B46","v":569999.99961658346}]

{"sheet":"FPRO_I Salários Equipe Técnica","index":1,"n_rows":38,"n_cols":5,"rows_kept":38,"cut":false,"hidden":false,"merged":[[35,0,35,2],[35,3,35,4],[29,0,29,3],[25,0,25,4],[27,0,27,4],[34,0,34,2],[32,0,33,1],[32,2,33,4],[34,3,34,4],[37,0,38,4],[20,0,20,4],[16,0,16,4],[6,0,7,2],[6,3,6,4],[7,3,7,4],[18,0,19,0],[18,1,19,1],[18,2,19,2],[18,3,18,4],[12,0,13,4],[9,0,9,1],[10,0,10,1],[9,2,9,4],[10,2,10,4],[36,0,36,4]]}
[]
[]
[]
[]
[]
[]
["SALÁRIOS DA EQUIPE TÉCNICA",null,null,"CÓDIGO:"]
[null,null,null,"FPRO - I"]
[]
["NOME DA CONSULTORA:",null,"EDITAL:"]
[]
["OBJETO:"]
["Elaboração do Projeto Básico de Engenharia do Sistema de Esgotamento Sanitário e Drenagem Urbana do Município de ARAME, no Estado do Maranhão"]
[]
[]
[]
["EQUIPE TÉCNICA"]
[]
["Descrição","Categoria","Quantidade (mês)","Salário (R$)"]
[null,null,null,"Categoria","Total"]
["NÍVEL SUPERIOR"]
["Profissional  Pleno","P1",2,9000,{"$f":"C22*D22","v":18000}]
["Profissional  Médio","P2",4,8500,{"$f":"C23*D23","v":34000}]
["Profissional Júnior","P3",4,8500,34000]
["Profissional Trainee"]
["NÍVEL TÉCNICO"]
["Técnico - Profissional Pleno","T1",8,3500,{"$f":"C27*D27","v":28000}]
[2000]
["Ajudante Administrativo","A2",8,2500,{"$f":"C29*D29","v":20000}]
["Total Geral - Salário Equipe (R$):",null,null,null,{"$f":"SUM(E22:E29)","v":134000}]
[]
[]
["NOME DO INFORMANTE: \nPedro Antonio Molinas",null,"QUALIFICAÇÃO:\nSócio - Diretor"]
[]
["ASSINATURA:",null,null,"DATA:"]
[null,null,null,"2019-12-09"]
["OBSERVAÇÃO:"]
["1 - QUANTIDADE DEFINIDA EM FUNÇÃO DE HOMEM X MÊS"]

{"sheet":"FPRO_II  Viagens","index":2,"n_rows":40,"n_cols":7,"rows_kept":40,"cut":false,"hidden":false,"merged":[[33,0,33,2],[33,3,33,4],[37,0,37,4],[38,0,38,4],[39,0,39,4],[36,0,36,4],[28,0,28,3],[35,0,35,4],[31,0,32,1],[31,2,32,4],[34,0,34,2],[34,3,34,4],[10,0,10,1],[10,2,10,4],[12,0,13,4],[23,0,23,4],[26,0,26,3],[16,0,17,0],[16,1,17,1],[18,0,18,4],[22,0,22,3],[16,2,17,2],[16,3,16,4],[6,0,7,2],[6,3,6,4],[7,3,7,4],[9,0,9,1],[9,2,9,4]]}
[]
[]
[]
[]
[]
[]
["VIAGENS DA EQUIPE TÉCNICA",null,null,"CÓDIGO:"]
[null,null,null,"FPRO - II"]
[]
["NOME DA CONSULTORA:",null,"EDITAL:"]
[]
["OBJETO:"]
["Elaboração do Projeto Básico de Engenharia do Sistema de Esgotamento Sanitário e Drenagem Urbana do Município de ARAME, no Estado do Maranhão"]
[]
[]
[]
["Descrição","Unidade","Quantidade","Valor (R$)"]
[null,null,null,"Unitário","Total"]
["VIAGENS - Trechos Aéreos e Terrestres"]
["Trechos Aéreos (Sede-SLZ-Sede)","und",9,1367.6088462870503,{"$f":"C20*D20","v":12308.479616583452},null,{"$f":"2100/8*4.7","v":1233.75}]
["Trechos Terrestres (SLZ-Arame-SLZ)","diária",30,50,{"$f":"C21*D21","v":1500}]
[]
["Total - Viagens:",null,null,null,{"$f":"SUM(E20:E22)","v":13808.479616583452}]
["DIÁRIAS"]
["DIÁRIAS (São Luis)","und",8,400,{"$f":"C25*D25","v":3200}]
["Diárias (Arame)","und",{"$f":"C20*3","v":27},239,{"$f":"C26*D26","v":6453}]
["Total - Diárias:",null,null,null,{"$f":"SUM(E25:E26)","v":9653}]
[]
["Total Geral - Viagens da Equipe Técnica:",null,null,null,{"$f":"E23+E27","v":23461.479616583452}]
[]
[]
["NOME DO INFORMANTE: \nPedro Antonio Molinas",null,"QUALIFICAÇÃO:\nSócio - Diretor"]
[]
["ASSINATURA:",null,null,"DATA:"]
[null,null,null,"2019-12-09"]
["OBSERVAÇÃO:"]
["1 - AS DIÁRIAS COBREM DESPESAS COM TÁXI, ALIMENTAÇÃO E HOSPEDAGEM"]
["2 – SEDE: REFERE-SE À SEDE  DA EMPRESA CONTRATADA."]
["3 – SLZ: REFERE-SE À 8ª SUPERINTENDÊNCIA DA CODEVASF, EM SÃO LUIS /MA"]
["4 - AS VIAGENS TERRESTRES SERÃO FEITAS ATRAVÉS DE VEÍCULO TIPO SEDÃ, OU SIMILAR"]

{"sheet":"FPRO_III Ser Graf","index":3,"n_rows":34,"n_cols":5,"rows_kept":34,"cut":false,"hidden":false,"merged":[[6,0,7,2],[6,3,6,4],[7,3,7,4],[24,0,24,3],[16,0,17,0],[16,1,17,1],[16,2,17,2],[16,3,16,4],[33,0,36,4],[30,0,30,4],[31,0,32,4],[9,0,9,1],[9,2,9,4],[10,0,10,1],[10,2,10,4],[12,0,13,4],[26,0,27,1],[26,2,27,4],[28,0,28,2],[28,3,28,4],[29,0,29,2],[29,3,29,4]]}
[]
[]
[]
[]
[]
[]
["SERVIÇOS GRÁFICOS",null,null,"CÓDIGO:"]
[null,null,null,"FPRO - III"]
[]
["NOME DA CONSULTORA:",null,"EDITAL:"]
[]
["OBJETO:"]
["Elaboração do Projeto Básico de Engenharia do Sistema de Esgotamento Sanitário e Drenagem Urbana do Município de ARAME, no Estado do Maranhão"]
[]
[]
[]
["Descrição","Quantidade","Nº de Vias","Valor (R$)"]
[null,null,null,"Unitário","Total"]
["Levantamentos, Diagnóstico e Estudo de Alternativas",1,2,1400,{"$f":"B19*C19*D19","v":2800}]
["Minuta do Relatorio Final",1,4,400,{"$f":"B20*C20*D20","v":1600}]
["Relatório Final",2,4,1400,{"$f":"B21*C21*D21","v":11200}]
[]
[]
[]
["Total Geral - Serviços Gráficos:",null,null,null,{"$f":"SUM(E19:E24)","v":15600}]
[]
["NOME DO INFORMANTE: \nPedro Antonio Molinas",null,"QUALIFICAÇÃO:\nSócio - Diretor"]
[]
["ASSINATURA:",null,null,"DATA:"]
[null,null,null,"2019-12-09"]
["OBSERVAÇÃO:"]
["1 - RELACIONAR OS RELATÓRIOS COM SUAS RESPECTIVAS QUANTIDADES E Nº DE VIAS, BEM COMO COM SEUS CUSTOS COM IMPRESSÃO"]
[]
["2 - A QUANTIDADE ESTIMADA DE PÁGINAS E DESENHOS EM FORMATO A1 OU A4, POR VOLUME, DEVERÁ SER EFETUADA LEVANDO-SE EM CONSIDERAÇÃO O CONHECIMENTO DAS NECESSIDADES DE CADA SISTEMA  E AS CARACTERÍSTICAS INERENTES A CADA VOLUME INTEGRANTE DO PROJETO."]

{"sheet":"FPRO-IV Topografia","index":4,"n_rows":51,"n_cols":8,"rows_kept":51,"cut":false,"hidden":false,"merged":[[47,0,49,5],[50,0,51,5],[6,0,7,3],[6,4,6,5],[7,4,7,5],[9,0,9,2],[9,3,9,5],[10,0,10,2],[10,3,10,5],[12,0,13,5],[39,0,39,4],[41,0,41,5],[40,0,40,5],[16,4,16,5],[16,3,17,3],[16,2,17,2],[16,1,17,1],[46,0,46,5],[42,0,43,2],[42,3,43,5],[44,0,44,3],[44,4,44,5],[45,0,45,3],[45,4,45,5],[16,0,17,0],[18,1,18,5],[23,1,23,5],[27,1,27,5],[31,1,31,5],[35,1,35,5]]}
[]
[]
[]
[]
[]
[]
["SERVIÇOS TOPOGRÁFICOS",null,null,null,"CÓDIGO:"]
[{"$nulls":4},"FPRO - IV"]
[]
["NOME DA CONSULTORA:",null,null,"EDITAL:"]
[]
["OBJETO:"]
["Elaboração do Projeto Básico de Engenharia do Sistema de Esgotamento Sanitário e Drenagem Urbana do Município de ARAME, no Estado do Maranhão"]
[]
[]
[]
["Item","Descrição","Unidade","Quantidade","Valor (R$)"]
[{"$nulls":4},"Unitário","Total"]
[1,"Amarração Planialtimétrica"]
["1.1","Pontos GPS de dupla frequencia (L1/L2)","un",3,800,{"$f":"ROUND(D20*E20,2)","v":2400}]
["1.2","Pontos GPS de uma frequencia (L1)","un",3,400,{"$f":"ROUND(D21*E21,2)","v":1200},null,{"$f":"40/1.7","v":23.529411764705884}]
["1.3","Poligonal eletrônica classe IIP","km",1,800,{"$f":"ROUND(D22*E22,2)","v":800},null,{"$f":"24*1337.19","v":32092.560000000001}]
["1.4","Nivelamento Geométrico classe IIN","km",1,500,{"$f":"ROUND(D23*E23,2)","v":500}]
[2," Estações de Bombeamento, Drenagem, Canais, Tubulações"]
["2.1","Poligonal eletrônica classe IIP","km",50,{"$f":"E22","v":800},{"$f":"ROUND(D25*E25,2)","v":40000},null,{"$f":"10/1.7","v":5.882352941176471}]
["2.2","Nivelamento Geométrico classe IIN","km",50,{"$f":"E23","v":500},{"$f":"ROUND(D26*E26,2)","v":25000},null,6]
["2.3","Seções Transversais (Nivelamento IIN)","km",20.2,{"$f":"E23","v":500},{"$f":"ROUND(D27*E27,2)","v":10100}]
[3,"Jazidas"]
["3.1","Poligonal eletrônica classe IIP","km",1,{"$f":"E25","v":800},{"$f":"ROUND(D29*E29,2)","v":800}]
["3.2","Nivelamento Geométrico classe IIN","km",1,{"$f":"E26","v":500},{"$f":"ROUND(D30*E30,2)","v":500}]
["3.3","Seções Transversais (Nivelamento IIN)","km",2,{"$f":"E27","v":500},{"$f":"ROUND(D31*E31,2)","v":1000}]
[4,"Monumentação"]
["4.1","Marco de Concreto (8x12x60cm)","un",10,46.07,{"$f":"ROUND(D33*E33,2)","v":460.7}]
["4.2","Barrotes de Madeira (10x10x50cm)","un",600,23.77,{"$f":"ROUND(D34*E34,2)","v":14262}]
["4.3","Piquetes de Madeira (2x2x20cm)","un",7700,2,{"$f":"ROUND(D35*E35,2)","v":15400}]
[5,"Abertura de Picadas"]
["5.1","Recomposição de cercas de arame","m",50,3.26,{"$f":"E37*D37","v":163},null,"TABELA SINAPI (07/2019): CÓDIGO 85.171"]
["5.2","Abertura de picada manual","m²",1000,0.99,{"$f":"ROUND(D38*E38,2)","v":990},null,"TABELA SINAPI (07/2019): CÓDIGO 85.331 -  CONSIDERADO O PREÇO DE CORTE DE CAPOEIRA A FOICE, 1M DE LARGURA, POR SEREM SERVIÇOS SIMILARES"]
[]
["Total Geral - Serviços Topográficos:",{"$nulls":4},{"$f":"SUM(F20:F38)","v":113575.7}]
[]
[]
["NOME DO INFORMANTE:\nPedro  Antonio Molinas",null,null,"QUALIFICAÇÃO:\nSócio - Diretor"]
[]
["ASSINATURA:",null,null,null,"DATA:"]
[{"$nulls":4},"2019-12-09"]
["OBSERVAÇÃO:"]
["1 - OS SERVIÇOS  PAGOS A PREÇOS UNITÁRIOS INCLUEM OS CUSTOS DE MÃO DE OBRA,  EQUIPAMENTOS, MATERIIAIS E   VEÍCULOS UTILIZADOS NA SUA EXECUÇÃO; BEM COMO CUSTOS DE ADMINISTRAÇÃO E DESPESAS FISCAIS"]
[]
[]
["2 - OS ITENS 5.1 E 5.2 FORAM OBTIDOS A PARTIR DO SINAPI, E OS DEMAIS FORAM EXTRAÍDOS DA TABELA DE ENGENHARIA CONSULTIVA DA CODEVASF"]

{"sheet":"FPRO_V Geotecnia","index":5,"n_rows":77,"n_cols":9,"rows_kept":77,"cut":false,"hidden":false,"merged":[[6,0,7,3],[6,4,6,5],[7,4,7,5],[9,0,9,2],[9,3,9,5],[10,0,10,2],[10,3,10,5],[12,0,13,5],[16,0,17,0],[16,1,17,1],[16,2,17,2],[16,3,17,3],[16,4,16,5],[79,0,80,5],[69,0,70,5],[71,0,72,2],[71,3,72,5],[73,0,73,3],[73,4,73,5],[74,0,74,3],[74,4,74,5],[18,1,18,5],[39,1,39,5],[75,0,75,5],[76,0,77,5],[78,0,78,5],[68,0,68,4]]}
[]
[]
[]
[]
[]
[]
["SERVIÇOS GEOTÉCNICOS",null,null,null,"CÓDIGO:"]
[{"$nulls":4},"FPRO - V"]
[]
["NOME DA CONSULTORA:",null,null,"EDITAL:"]
[]
["OBJETO:"]
["Elaboração do Projeto Básico de Engenharia do Sistema de Esgotamento Sanitário e Drenagem Urbana do Município de ARAME, no Estado do Maranhão"]
[]
[]
[]
["Item","Descrição","Unidade","Quantidade","Valor (R$)"]
[{"$nulls":4},"Unitário","Total"]
[1,"SONDAGEM MISTA"]
["1.1","Sondagem Rotativa"]
["1.1.1","Mobilização/desmobilização de equipamento","und"]
["1.1.2","Em jazidas graníticas e rochas afins",""]
["1.1.2.1","- Ø N","m"]
["1.1.2.2","- Ø B","m"]
["1.1.2.3","- Ø B (sondagem em solo)","m"]
["1.1.3","Deslocamento/instalação do equipamento",""]
["1.1.3.1","- 0  a  200 metros","und"]
["1.1.3.2","- 201 a 500 metros","und"]
["1.1.3.3","- Acima de 500 metros","und"]
["1.2","Sondagem a Percussão","",""]
["1.2.1","- Mobilização/desmobilização de equipamento","und",1,3312.31,{"$f":"ROUND(D31*E31,2)","v":3312.31}]
["1.2.2","- Sondagem à percussão com SPT","m",100,72.87,{"$f":"ROUND(D32*E32,2)","v":7287}]
[null,"Deslocamento/instalação de equipam.","",""]
[null,"- 0 a 200 metros","und"]
[null,"- 201 a  500 metros","und"]
[null,"- Acima de 500 metros","und"]
["2.","SONDAGEM SÍSMICA DE REFRAÇÃO","km",""]
["3.","SONDAGEM A  TRADO (4\")","m",720,67.28,{"$f":"ROUND(D38*E38,2)","v":48441.599999999999}]
["4.","POÇOS DE INSPEÇÃO com retroescavadeira","m"]
["5.","ENSAIOS"]
["5.1","Ensaios em solos","ensaio"]
["5.1.1","Umidade Natural","ensaio",15,73.33,{"$f":"ROUND(D42*E42,2)","v":1099.95}]
["5.1.2","Densidade Natural","ensaio",15,73.33,1099.95]
["5.1.3","Limite de Liquidez","ensaio",15,101.03,1515.45]
["5.1.4","Limite de Plasticidade","ensaio",15,101.03,1515.45]
["5.1.5","Granulometria por Peneiramento","ensaio",15,112,1680]
["5.1.6","Granulometria por Sedimentação","ensaio",15,342.19,5132.8500000000004]
["5.1.7","Ensaio compactação Proctor Normal","ensaio",15,144.19999999999999,2163]
["5.1.8","Massa Especifica  Real dos Grãos","ensaio",15,95.67,1435.05]
["5.1.9","Adensamento Oedométrico","ensaio"]
["5.1.10","Triaxial (UU) não consolidado não drenado","ensaio"]
["5.1.11","Triaxial (CU) consolidado - não drenado","ensaio"]
["5.1.12","Expansão (pressão de expansão)","ensaio"]
["5.1.13","Dispersão","ensaio"]
["5.1.13.1","Granulometria Comparativa","ensaio"]
["5.1.13.2","Crumb Test","ensaio"]
["5.1.14","Infiltração","ensaio",15,205.24,{"$f":"ROUND(D57*E57,2)","v":3078.6}]
["5.1.15","Ensaio de Perda d''agua (05 estágios)","ensaio",""]
["5.1.16","Análise da Areia","ensaio",""]
["5.1.16.1","Análise Química da Areia","ensaio"]
["5.1.16.2","Mineralogia da Areia","ensaio"]
["5.1.17","Mineralogia","ensaio",""]
["5.1.18","Abrasão \"Los Angeles \"","ensaio"]
["5.1.19","Reatividade Potencial","ensaio"]
["5.1.20","Permeabilidade vertical de carga variavel","ensaio",5,583.34,{"$f":"ROUND(D65*E65,2)","v":2916.7}]
["5.1.21","Permeabilidade \"in situ\"","ensaio",5,458.73,{"$f":"ROUND(D66*E66,2)","v":2293.65}]
["5.1.22","Indice de Suporte California ISC com amostras não trabalhadas","ensaio",{"$nulls":5},{"$f":"100-9.5","v":90.5}]
[]
["Total Geral - Serviços Geotécnicos:",{"$nulls":4},{"$f":"SUM(F20:F67)","v":82971.56},null,73711,{"$f":"H69/0.905","v":81448.618784530379}]
[]
[{"$nulls":7},{"$f":"F69/H69","v":1.1256333518742114}]
["NOME DO INFORMANTE:\nPedro Antonio Molinas",null,null,"QUALIFICAÇÃO:\nSócio Diretor"]
[]
["ASSINATURA:",null,null,null,"DATA:"]
[{"$nulls":4},"2019-12-09"]
["OBSERVAÇÃO:"]
["1 - OS SERVIÇOS  PAGOS A PREÇOS UNITÁRIOS INCLUEM OS CUSTOS DE MÃO-DE-OBRA,  EQUIPAMENTOS E MATERIAIS UTILIZADOS NA SUA EXECUÇÃO, BEM COMO LUCRO, CUSTOS DE ADMINISTRAÇÃO E DESPESAS FISCAIS"]

{"sheet":"FPRO-VI Serviços Auxiliares","index":6,"n_rows":34,"n_cols":6,"rows_kept":34,"cut":false,"hidden":false,"merged":[[23,0,23,4],[24,0,25,5],[18,1,18,5],[6,0,7,3],[6,4,6,5],[7,4,7,5],[9,0,9,2],[9,3,9,5],[10,0,10,2],[10,3,10,5],[12,0,13,5],[16,0,17,0],[16,1,17,1],[16,2,17,2],[16,3,17,3],[16,4,16,5],[30,0,30,5],[31,0,32,5],[33,0,34,5],[26,0,27,2],[26,3,27,5],[28,0,28,3],[28,4,28,5],[29,0,29,3],[29,4,29,5]]}
[]
[]
[]
[]
[]
[]
["SERVIÇOS AUXILIARES",null,null,null,"CÓDIGO:"]
[{"$nulls":4},"FPRO - VI"]
[]
["NOME DA CONSULTORA:",null,null,"EDITAL:"]
[]
["OBJETO:"]
["Elaboração do Projeto Básico de Engenharia do Sistema de Esgotamento Sanitário e Drenagem Urbana do Município de ARAME, no Estado do Maranhão"]
[]
[]
[]
["Item","Descrição","Unidade","Quantidade","Valor (R$)"]
[{"$nulls":4},"Unitário","Total"]
[1,"Análise fisico-química e bacteriológica da água do corpo receptor"]
[null,"Coliformes termotolerantes, DBO, fósforo total, nitrogênio total, OD, pH, temperatura, turbidez e sólidos totais.","und",1,227.44,{"$f":"D20*E20","v":227.44}]
[]
[]
[]
["Total Geral - Serviços Auxiliares:",{"$nulls":4},{"$f":"SUM(F19:F23)","v":227.44}]
[]
[]
["NOME DO INFORMANTE:\nPedro Antonio Molinas",null,null,"QUALIFICAÇÃO:\nSócio Diretor"]
[]
["ASSINATURA:",null,null,null,"DATA:"]
[{"$nulls":4},"2019-12-09"]
["OBSERVAÇÃO:"]
["1 - OS SERVIÇOS  PAGOS A PREÇOS UNITÁRIOS INCLUEM OS CUSTOS DE MÃO DE OBRA,  EQUIPAMENTOS, MATERIIAIS E  VEÍCULOS UTILIZADOS NA SUA EXECUÇÃO; BEM COMO CUSTOS DE ADMINISTRAÇÃO E DESPESAS FISCAIS"]
[]
["2 - OS VALORES FORAM OBTIDOS ATRAVÉS DE ORÇAMENTOS"]

{"sheet":"FPRO_VII Cronog Fisico","index":7,"n_rows":36,"n_cols":4,"rows_kept":36,"cut":false,"hidden":false,"merged":[[0,0,3,3],[25,0,25,2],[28,3,29,3],[28,0,29,2],[30,3,31,3],[30,0,31,2],[26,0,27,3],[12,0,13,3],[6,0,7,2],[35,0,36,3],[16,0,17,0],[16,1,17,1],[16,2,17,2],[16,3,17,3],[33,0,34,3],[32,0,32,3]]}
[]
[]
[]
[]
[]
[]
["CRONOGRAMA FÍSICO",null,null,"CÓDIGO:"]
[null,null,null,"FPRO -VII"]
[]
["NOME DA CONSULTORA:",null,null,"EDITAL:"]
[]
["OBJETO:"]
["Elaboração do Projeto Básico de Engenharia do Sistema de Esgotamento Sanitário e Drenagem Urbana do Município de ARAME, no Estado do Maranhão"]
[]
[]
[]
["Sequência","Tarefa","Relatório / Serviço de Campo","Quant. de Dias"]
[]
[0,"E01","Serviços Topográficos",120]
[1,"E02","Diagnóstico e Estudo de Concepção",60]
[1,"E03","Serviços Geotécnicos",90]
[1,"E04","Minuta do Projeto Básico:",30]
[1,"E05","Projeto Básico Final",60]
[]
[]
["Prazo (dias):",null,null,{"$f":"SUM(D19:D25)","v":360}]
[]
[]
["NOME DO INFORMANTE:\nPedro Antonio Molinas",null,null,"QUALIFICAÇÃO:\nSócio - Diretor"]
[]
["ASSINATURA:",null,null,"DATA:\n09/12/2019"]
[]
["OBSERVAÇÃO:"]
["1 - AS LICITANTES APRESENTARÃO SEUS CRONOGRAMAS, CONSIDERANDO, NO MÍNIMO, A RELAÇÃO DE EVENTOS/PRODUTOS CONSTANTES DO ANEXO V"]
[]
["2 - OS DIAS CORRIDOS FORAM CONSIDERADOS A PARTIR DA EMISSÃO DA ORDEM DE SERVIÇO (os), CONFORME PREVISTO NOS TERMO DE REFERÊNCIA"]

{"sheet":"FPRO_VIII_Det_Custos Adm_","index":8,"n_rows":28,"n_cols":3,"rows_kept":28,"cut":false,"hidden":false,"merged":[[27,0,28,2],[6,0,7,1],[9,0,9,1],[24,0,24,1],[25,0,25,1],[26,0,26,2],[20,0,20,1],[22,0,23,1],[22,2,23,2],[10,0,10,1],[12,0,13,2],[11,0,11,2]]}
[]
[]
[]
[]
[]
[]
["DETALHAMENTO DO CUSTO DE ADMINISTRAÇÃO",null,"CÓDIGO:"]
[null,null,"FPRO - VIII"]
[]
["NOME DA CONSULTORA:",null,"EDITAL:"]
[]
["OBJETO:"]
["Elaboração do Projeto Básico de Engenharia do Sistema de Esgotamento Sanitário e Drenagem Urbana do Município de ARAME, no Estado do Maranhão"]
[]
[]
[]
["Item","Descrição","%"]
[1,"Custos da equipe da administração central da empresa consultora (diretoria, pessoal técnico de apoio e pessoal administrativo não diretamente vinculado à prestação dos serviços)",0.1]
[2,"Outras despesas que afetam o custo de produção como: avaliação do concreto com ensaios, treinamento, biblioteca, programa de qualidade, auditoria interna e externa",0.03]
[3,"Despesas com aluguéis, comunicação, manutenção e transporte não diretamente relacionados com o custo direto dos serviços",0.02]
["Total Geral - Custo de Administração:",null,{"$f":"SUM(C18:C20)","v":0.15}]
[]
["NOME DO INFORMANTE:\nPedro Antonio Molinas",null,"QUALIFICAÇÃO:\nSócio Diretor"]
[]
["ASSINATURA:",null,"DATA:"]
[null,null,"2019-12-09"]
["OBSERVAÇÃO:"]
["1 - RELACIONAR OS CUSTOS DE ADMINISTRAÇÃO COM RESPECTIVOS PERCENTUAIS INCIDENTES NA MÃO -DE-OBRA DOS SERVIÇOS"]

{"sheet":"FPRO_IX Det_ Desp Fiscais","index":9,"n_rows":35,"n_cols":3,"rows_kept":35,"cut":false,"hidden":false,"merged":[[32,0,32,2],[33,0,33,2],[34,0,34,2],[27,0,27,2],[0,0,3,2],[26,0,26,2],[30,0,31,2],[28,0,29,2],[22,0,23,1],[22,2,23,2],[24,0,24,1],[25,0,25,1],[6,0,7,1],[9,0,9,1],[10,0,10,1],[11,0,11,2],[12,0,13,2]]}
[]
[]
[]
[]
[]
[]
["DETALHAMENTO DAS DESPESAS FISCAIS",null,"CÓDIGO:"]
[null,null,"FPRO - IX"]
[]
["NOME DA CONSULTORA:",null,"EDITAL:"]
[]
["OBJETO:"]
["Elaboração do Projeto Básico de Engenharia do Sistema de Esgotamento Sanitário e Drenagem Urbana do Município de ARAME, no Estado do Maranhão"]
[]
[]
[]
["Descrição","DF (%)2","DF' (%)3"]
["1 - ISS",5,{"$f":"(1/(1-$B$21/100))*B18","v":5.8309037900874632}]
["2 - PIS",1.65,{"$f":"(1/(1-$B$21/100))*B19","v":1.9241982507288626}]
["3 - COFINS",7.6,{"$f":"(1/(1-$B$21/100))*B20","v":8.8629737609329435}]
["Total Geral - Despesas Fiscais:",{"$f":"ROUND(B18+B19+B20,2)","v":14.25},{"$f":"ROUND(C18+C19+C20,2)","v":16.62}]
[]
["NOME DO INFORMANTE:\nPedro Antonio Molinas",null,"QUALIFICAÇÃO:\nSócio Diretor"]
[]
["ASSINATURA:",null,"DATA:"]
[null,null,"2019-12-09"]
["OBSERVAÇÃO:"]
["1 - DISCRIMINAR OS TRIBUTOS QUE INCIDEM SOBRE OS CUSTOS DA PRESTAÇÃO DOS SERVIÇOS"]
["2 - DF = INDICAR OS VALORES PERCENTUAIS DE CADA TRIBUTO E A SOMA DOS MESMOS (ex: ISS 5% + PIS 1,65% + COFINS 7,60% = 14,25%)"]
[]
["3 - AS DESPESAS FISCAIS (DF) INCIDEM SOBRE O TOTAL DA FATURA E NÃO SOBRE OS CUSTOS INCORRIDOS,  DEVENDO SER CALCULADO O DF' APLICANDO-SE A SEGUINTE FÓRMULA:"]
[]
["DF' = { [ 1 / ( 1 - DF) ] - 1 } x 100"]
[{"$f":"CONCATENATE(\"     DF' = { [ 1 / ( 1 - \",B21,\" ) ] - 1 } x 100\")","v":"     DF' = { [ 1 / ( 1 - 14,25 ) ] - 1 } x 100"}]
[{"$f":"CONCATENATE(\"     DF' = \",ROUND(C21/100,4),\"  ou  \",ROUND(C21,2),\"%.  APLICAR O % ENCONTRADO NA LINHA \"\"I\"\" DO FPRO PARA CALCULAR AS DESPESAS FISCAIS\")","v":"     DF' = 0,1662  ou  16,62%.  APLICAR O % ENCONTRADO NA LINHA \"I\" DO FPRO PARA CALCULAR AS DESPESAS FISCAIS"}]

{"sheet":"FPRO_X Det_ Enc_ Soc_","index":10,"n_rows":69,"n_cols":4,"rows_kept":69,"cut":false,"hidden":false,"merged":[[61,2,62,3],[43,1,43,3],[63,0,63,3],[68,0,69,3],[65,0,67,3],[49,0,49,1],[54,0,54,1],[51,1,51,3],[56,0,56,1],[64,0,64,3],[59,2,60,3],[59,0,60,1],[61,0,61,1],[62,0,62,1],[6,0,7,1],[6,2,6,3],[7,2,7,3],[41,0,41,1],[28,0,28,1],[18,1,18,3],[30,1,30,3],[9,0,10,1],[16,0,17,0],[16,1,17,1],[16,2,16,3],[12,0,13,3]]}
[]
[]
[]
[]
[]
[]
["DETALHAMENTO DE ENCARGOS SOCIAIS",null,"CÓDIGO:"]
[null,null,"FPRO - X"]
[]
["NOME DA CONSULTORA:",null,"EDITAL:"]
[]
["OBJETO:"]
["Elaboração do Projeto Básico de Engenharia do Sistema de Esgotamento Sanitário e Drenagem Urbana do Município de ARAME, no Estado do Maranhão"]
[]
[]
[]
["ITEM","DESCRIÇÃO","VALORES"]
[null,null,"HORISTA %","MENSALISTA %"]
["A","ENCARGOS SOCIAIS BÁSICOS"]
["A1","INSS",0.2,0.2]
["A2","Sesi",1.4999999999999999E-2,1.4999999999999999E-2]
["A3","Senai",0.01,0.01]
["A4","Incra",2E-3,2E-3]
["A5","Sebrae",6.0000000000000001E-3,6.0000000000000001E-3]
["A6","Salário Educação",2.5000000000000001E-2,2.5000000000000001E-2]
["A7","Seguro contra acidente de trabalho",0.03,0.03]
["A8","FGTS",0.08,0.08]
["A9","Seconci",0.01,0.01]
["SUBTOTAL DE \"A\":",null,{"$f":"SUM(C20:C28)","v":0.37800000000000006},{"$f":"SUM(D20:D28)","v":0.37800000000000006}]
[]
["B","ENCARGOS SOCIAIS QUE RECEBEM INCIDÊNCIA DE \"A\""]
["B1","Repouso semanal remunerado",0.17879999999999999,"Não incide"]
["B2","Feriados",3.95E-2,"Não incide"]
["B3","Auxílio-enfermidade",9.1999999999999998E-3,7.1000000000000004E-3]
["B4","13º Salário",0.1081,8.3299999999999999E-2]
["B5","Licença Paternidade",6.9999999999999999E-4,5.9999999999999995E-4]
["B6","Faltas justificadas",7.1999999999999998E-3,5.5999999999999999E-3]
["B7","Dias de chuvas",1.4800000000000001E-2,"Não incide"]
["B8","Auxílio acidente de trabalho",1.1000000000000001E-3,8.9999999999999998E-4]
["B9","Férias gozadas",8.6099999999999996E-2,6.6299999999999998E-2]
["B10","Salário Maternidade",2.9999999999999997E-4,2.0000000000000001E-4]
["SUBTOTAL DE  \"B\":",null,{"$f":"ROUND(SUM(C32:C41),4)","v":0.44579999999999997},{"$f":"ROUND(SUM(D32:D41),4)","v":0.16400000000000001}]
[]
["C","ENCARGOS SOCIAIS QUE NÃO RECEBEM INCIDÊNCIA DE \"A\""]
["C1","Aviso prévio indenizado – decreto 6.727/2009",5.4199999999999998E-2,4.1799999999999997E-2]
["C2","Aviso prévio trabalhado – decreto 6.727/2010",1.2999999999999999E-3,1E-3]
["C3","Férias indenizadas",4.87E-2,3.7499999999999999E-2]
["C4","Depósito rescisão sem justa causa",4.9500000000000002E-2,3.8199999999999998E-2]
["C5","Indenização adicional",4.5999999999999999E-3,3.5000000000000001E-3]
["SUBTOTAL DE \"C\":",null,{"$f":"ROUND(SUM(C45:C49),4)","v":0.1583},{"$f":"ROUND(SUM(D45:D49),4)","v":0.122}]
[]
["D","REINCIDÊNCIAS"]
["D1","Reincidência de Grupo \"A\" sobre Grupo \"B\"",0.16850000000000001,6.2E-2]
["D2","Reincidência de Grupo \"A\" sobre aviso prévio trabalhado e reincidência do FGTS sobre aviso prévio indenizado",4.7999999999999996E-3,3.7000000000000002E-3]
["SUBTOTAL DE \"D\":",null,{"$f":"ROUND(SUM(C53:C54),4)","v":0.17330000000000001},{"$f":"ROUND(SUM(D53:D54),4)","v":6.5699999999999995E-2}]
[]
["TOTAL - ENCARGOS SOCIAIS:",null,{"$f":"ROUND(C29+C42+C50+C55,4)","v":1.1554},{"$f":"ROUND(D29+D42+D50+D55,4)","v":0.72970000000000002}]
[]
[]
["NOME DO INFORMANTE:\nPedro Antonio Molinas",null,"QUALIFICAÇÃO:\nSócio Diretor"]
[]
["ASSINATURA:",null,"DATA: 09/12/2019"]
[]
["OBSERVAÇÃO:"]
["1 - DISCRIMINAR OS ENCARGOS SOCIAIS COM SEUS RESPECTIVOS PERCENTUAS, TOTALIZANDO OS MESMOS."]
["2 - VALORES PERCENTUAIS OBTIDOS em 05/09/2019, A PARTIR DO SINAPI - COMPOSIÇÃO DE ENCARGOS SOCIAIS, SEM DESONERAÇÃO (http://www.caixa.gov.br/Downloads/sinapi-encargos-sociais-sem-desoneracao/SINAPI_Encargos_Sociais_A_PARTIR_DE_OUTUBRO_2018.pdf)"]
[]
[]
["3 - PARA EFETIVAÇÃO DO CÁLCULO DOS VALORES EM REAIS, FORAM UTILIZADOS OS VALORES DA COLUNA \"MENSALISTA %\""]